bitfinex/quotes_ETHUSD_20240810
["timestamp","ask_amount","ask_price","bid_price","bid_amount"]
[1723309246656,1.32522089,2611.8,2611.5,0.632221]
[1723309246957,0.07653481,2611.9,2611.5,2.546811]
[1723309247156,1.32522334,2611.8,2611.5,2.546811]
[1723309247454,0.07653481,2611.9,2611.5,2.546811]
[1723309247617,1.32522589,2611.8,2611.5,2.546811]
[1723309247818,0.07653481,2611.9,2611.5,2.546811]
[1723309248047,1.32521877,2611.8,2611.5,2.546811]
[1723309248253,0.07653481,2611.9,2611.5,2.546811]
[1723309248454,1.32521573,2611.8,2611.5,2.546811]
[1723309248653,0.07653481,2612.1,2611.6,2.4184311]
[1723309248857,0.07653481,2612.1,2611.6,1.91447]
[1723309249045,1.32519491,2612.0,2611.6,1.91447]
[1723309249222,1.40172972,2611.9,2611.5,2.546811]
[1723309249425,0.07653481,2612.1,2611.5,2.546811]
[1723309249624,1.3251943,2612.0,2611.5,2.546811]
[1723309249842,1.40172911,2611.9,2611.6,1.154]
[1723309250030,1.32519762,2611.8,2611.6,1.154]
[1723309250359,2.4758,2612.0,2611.6,1.154]
[1723309250541,1.3251976,2611.9,2611.6,1.154]
[1723309250741,1.3251976,2611.9,2611.6,3.81694416]
[1723309250944,0.07653481,2612.1,2611.6,1.90243416]
[1723309251143,1.32518978,2612.0,2611.6,1.154]
[1723309251351,1.40172459,2611.9,2611.6,1.154]
[1723309251553,1.32518978,2611.8,2611.6,1.154]
[1723309251950,1.32518978,2612.0,2611.6,1.154]
[1723309252443,0.07653481,2611.9,2611.6,1.154]
[1723309253156,1.32519204,2611.8,2611.6,1.154]
[1723309253362,0.07653481,2612.1,2611.6,3.06851]
[1723309253563,1.32518095,2612.0,2611.7,0.49914616]
[1723309253862,1.40171576,2611.9,2611.6,3.06851]
[1723309254067,0.07653481,2612.1,2611.6,3.06851]
[1723309254275,1.3251711,2612.0,2611.6,3.81693616]
[1723309254588,1.3251711,2611.9,2611.6,3.81693616]
[1723309254783,1.3251711,2612.0,2611.6,3.81693616]
[1723309255085,1.32517593,2611.9,2611.6,3.81693616]
[1723309255263,0.07653481,2612.1,2611.7,2.48844877]
[1723309255457,1.32509549,2612.0,2611.7,2.48844877]
[1723309255692,0.07653481,2612.1,2611.7,2.48844877]
[1723309255989,1.32507239,2612.0,2611.7,1.91446]
[1723309256309,0.07653481,2612.1,2611.7,1.91446]
[1723309256674,0.07653481,2612.1,2611.8,1.154]
[1723309256853,0.07653481,2612.2,2611.8,1.154]
[1723309257055,1.32505012,2612.1,2611.8,1.154]
[1723309257364,0.07653481,2612.2,2611.8,1.154]
[1723309257577,1.32504101,2612.1,2611.8,1.154]
[1723309257892,0.07653481,2612.2,2611.8,1.154]
[1723309258061,1.32505484,2612.1,2611.8,5.48268]
[1723309258395,0.07653481,2612.2,2611.8,5.48268]
[1723309258685,1.32504724,2612.1,2611.8,3.5683]
[1723309258854,0.07653481,2612.2,2611.8,1.154]
[1723309259050,1.32507819,2612.1,2611.8,1.154]
[1723309259251,0.07653481,2612.2,2611.8,1.154]
[1723309259451,1.32508291,2612.1,2611.8,1.154]
[1723309259650,0.07653481,2612.2,2611.8,1.154]
[1723309259850,1.32508256,2612.1,2611.8,1.154]
[1723309260074,0.07653481,2612.2,2611.8,1.154]
[1723309260282,1.32508253,2612.1,2611.8,1.154]
[1723309260502,0.07653481,2612.0,2611.8,1.154]
[1723309260706,0.07653481,2612.2,2611.8,1.154]
[1723309260906,1.32508863,2612.1,2611.8,1.154]
[1723309261081,0.07653481,2612.0,2611.6,5.48283]
[1723309261284,2.3014,2612.0,2611.6,1.154]
[1723309261492,2.3014,2612.0,2611.5,0.00839155]
[1723309261493,0.07653481,2611.9,2611.5,0.00839155]
[1723309265320,1.99084481,2611.9,2611.5,0.00839155]
[1723309265519,1.32522738,2611.8,2611.5,0.00839155]
[1723309265682,0.07653481,2611.7,2611.5,0.00839155]
[1723309265885,2.3014,2611.6,2611.5,0.00839155]
[1723309266079,7.45573616,2611.6,2611.5,0.00839155]
[1723309266315,6.29443326,2611.6,2611.5,0.00839155]
[1723309266500,6.37110357,2611.6,2611.5,0.00839155]
[1723309267813,4.45657357,2611.6,2611.5,0.00839155]
[1723309268708,6.37110357,2611.6,2611.5,0.00839155]
[1723309269843,3.31647647,2611.6,2611.5,0.00839155]
[1723309270533,3.31651301,2611.6,2611.5,0.00839155]
[1723309270945,5.72271301,2611.6,2611.5,0.00839155]
[1723309271798,5.72270518,2611.6,2611.5,0.00839155]
[1723309272202,7.63723518,2611.6,2611.5,0.00839155]
[1723309272433,8.4009587,2611.6,2611.5,0.00839155]
[1723309273138,11.4009587,2611.6,2611.5,0.00839155]
[1723309273336,12.43402021,2611.6,2611.5,0.00839155]
[1723309273542,12.43416166,2611.6,2611.5,0.00839155]
[1723309273745,12.43411889,2611.6,2611.5,0.00839155]
[1723309274344,11.40110527,2611.6,2611.5,0.00839155]
[1723309276645,9.48656455,2611.6,2611.5,0.00839155]
[1723309277453,8.16098833,2611.6,2611.5,0.00839155]
[1723309277776,9.48652489,2611.6,2611.5,0.00839155]
[1723309278647,11.40105489,2611.6,2611.5,0.00839155]
[1723309282000,11.40102344,2611.6,2611.5,0.00839155]
[1723309283089,4.40203992,2611.6,2611.5,0.00839155]
[1723309283295,0.07653481,2611.6,2611.5,0.00839155]
[1723309283497,0.07653481,2611.7,2611.5,0.00839155]
[1723309284967,1.99105481,2611.7,2611.5,0.00839155]
[1723309285162,2.60507948,2611.6,2611.5,0.00839155]
[1723309285899,0.07653481,2611.7,2611.5,0.00839155]
[1723309289106,1.91413,2612.2,2611.6,3.4864]
[1723309289304,1.40174754,2612.1,2611.6,3.4864]
[1723309289495,1.32521273,2612.0,2611.6,3.4864]
[1723309289695,3.07653481,2612.1,2611.6,4.03499237]
[1723309290005,1.32519645,2612.0,2611.6,4.03499237]
[1723309290212,0.07653481,2611.9,2611.6,4.03499237]
[1723309290517,0.07653481,2611.9,2611.5,0.00839155]
[1723309291311,1.99085481,2611.9,2611.5,0.00839155]
[1723309292010,0.07653481,2611.9,2611.5,0.00839155]
[1723309292388,0.07653481,2611.9,2611.5,0.54934071]
[1723309294797,0.07653481,2611.9,2611.5,0.54094916]
[1723309295300,0.07653481,2612.0,2611.5,0.54094916]
[1723309295499,1.32523018,2611.9,2611.5,0.54094916]
[1723309295724,0.07653481,2612.0,2611.6,0.59420292]
[1723309295911,1.32521962,2611.9,2611.6,0.59420292]
[1723309296213,0.07653481,2612.0,2611.6,0.59420292]
[1723309300806,1.99081481,2612.0,2611.6,0.59420292]
[1723309301033,1.99081481,2612.0,2611.4,3.4864]
[1723309302234,1.99081481,2612.0,2611.4,5.40107]
[1723309303052,0.07653481,2612.0,2611.6,1.154]
[1723309303412,0.07653481,2612.1,2611.7,2.3273]
[1723309304306,0.07653481,2612.1,2611.7,3.058338]
[1723309304917,3.0,2612.3,2611.8,1.154]
[1723309305306,4.91398,2612.4,2611.8,1.154]
[1723309305510,1.32504421,2612.3,2611.8,1.154]
[1723309305836,1.32504421,2612.2,2611.8,1.154]
[1723309306009,4.91398,2612.4,2611.8,1.154]
[1723309306211,1.32504149,2612.3,2611.8,1.154]
[1723309306460,6.23906149,2612.3,2611.8,1.154]
[1723309306626,1.32506171,2612.2,2611.8,1.154]
[1723309306827,4.91402,2612.3,2611.8,1.154]
[1723309307047,3.0,2612.3,2612.0,3.4813]
[1723309307414,7.3,2612.5,2612.0,3.4813]
[1723309308221,1.91397,2612.4,2612.0,3.4813]
[1723309310114,7.3,2612.5,2612.2,1.154]
[1723309310349,0.07653481,2612.4,2612.2,1.154]
[1723309311016,1.99048481,2612.4,2611.9,2.4829]
[1723309311249,1.99048481,2612.4,2612.0,1.60138246]
[1723309312347,1.91402,2612.3,2612.0,1.60138246]
[1723309312546,5.60046395,2612.2,2611.6,3.6369]
[1723309312720,6.18960481,2612.2,2611.6,3.6369]
[1723309312920,4.27546481,2612.2,2611.6,3.6369]
[1723309313120,4.27546481,2612.2,2611.7,0.555146]
[1723309314648,1.91418,2612.1,2611.7,0.555146]
[1723309314864,0.07653481,2612.0,2611.7,0.555146]
[1723309315031,0.07653481,2612.0,2611.8,1.154]
[1723309317424,0.07653481,2612.1,2611.8,1.154]
[1723309317626,1.99075481,2612.1,2611.8,1.154]
[1723309317923,1.99075481,2612.1,2611.6,1.154]
[1723309318151,1.99075481,2612.1,2611.6,1.691127]
[1723309320033,0.07653481,2612.1,2611.6,3.605657]
[1723309321022,0.07653481,2612.1,2611.8,1.154]
[1723309321217,0.07653481,2612.2,2611.8,3.5917]
[1723309321928,1.99064481,2612.2,2611.8,3.5917]
[1723309322141,1.99064481,2612.2,2611.8,1.154]
[1723309322360,1.32506753,2612.1,2611.8,1.154]
[1723309322524,1.99064481,2612.2,2611.8,1.154]
[1723309322719,1.32506985,2612.1,2611.8,1.154]
[1723309323026,0.07653481,2612.0,2611.8,1.154]
[1723309324653,0.07653481,2612.1,2611.8,1.154]
[1723309326164,1.99070481,2612.1,2611.8,1.154]
[1723309326338,1.40166304,2612.0,2611.8,1.154]
[1723309326660,0.07653481,2612.0,2611.8,1.154]
[1723309326862,0.07653481,2612.0,2611.6,3.5917]
[1723309327062,0.07653481,2612.0,2611.6,4.142333]
[1723309329589,1.91475,2611.3,2611.0,7.35]
[1723309329871,1.91475,2611.3,2610.9,0.00506612]
[1723309329872,0.07653481,2611.2,2610.9,0.00506612]
[1723309330629,1.99140481,2611.2,2610.9,0.00506612]
[1723309331238,3.82994,2611.0,2610.9,0.00506612]
[1723309331439,3.82994,2611.0,2609.8,3.6207]
[1723309331440,1.91543,2610.4,2609.8,3.6207]
[1723309331687,0.07653481,2610.3,2609.8,3.6207]
[1723309331832,0.07653481,2610.3,2610.0,1.154]
[1723309332670,0.07653481,2610.5,2610.2,1.154]
[1723309332864,4.19965,2611.2,2610.4,3.6207]
[1723309333074,0.07653481,2611.1,2610.8,1.154]
[1723309333688,0.07653481,2611.1,2610.6,1.91525]
[1723309333994,0.07653481,2611.3,2610.7,0.191525]
[1723309334214,0.07653481,2611.3,2610.4,6.2974]
[1723309334382,1.91484,2611.2,2610.5,1.91531]
[1723309334701,0.07653481,2611.1,2610.5,2.545046]
[1723309338322,0.07653481,2611.1,2610.6,1.91526]
[1723309338803,1.99137481,2611.2,2610.6,1.91526]
[1723309339008,1.98298326,2611.2,2610.6,1.91526]
[1723309339207,1.98298326,2611.2,2610.6,2.6079646]
[1723309339413,1.98298326,2611.2,2610.4,4.38205]
[1723309339414,1.91497,2611.0,2610.4,4.38205]
[1723309339621,1.99150481,2611.0,2610.4,4.38205]
[1723309339991,4.27630481,2611.0,2610.2,1.91553]
[1723309340187,4.27630481,2611.0,2610.3,0.438223]
[1723309341473,4.27630481,2611.0,2610.3,2.353643]
[1723309342671,1.99150481,2611.0,2610.3,2.353643]
[1723309342875,0.07653481,2610.9,2610.3,2.353643]
[1723309343780,0.07653481,2610.9,2610.3,0.438223]
[1723309344077,0.07653481,2610.9,2609.9,1.91576]
[1723309344078,2.2848,2610.8,2609.9,1.91576]
[1723309344418,0.07653481,2610.7,2609.9,1.91576]
[1723309345621,1.91532,2610.6,2609.9,1.91576]
[1723309345819,0.07653481,2610.5,2609.9,2.772]
[1723309346115,0.07653481,2610.5,2610.0,1.91566]
[1723309346412,0.07653481,2610.5,2610.1,0.468766]
[1723309346774,0.07653481,2610.6,2610.1,0.468766]
[1723309347216,1.99184481,2610.6,2610.1,0.468766]
[1723309347714,3.90717481,2610.6,2610.1,0.468766]
[1723309347903,0.07653481,2610.5,2610.1,0.468766]
[1723309348085,1.99190481,2610.5,2610.1,0.468766]
[1723309348287,1.99190481,2610.5,2609.9,2.772]
[1723309348288,0.07653481,2610.5,2609.9,2.772]
[1723309348491,0.07653481,2610.5,2609.8,2.469486]
[1723309348726,1.99191481,2610.5,2609.8,2.469486]
[1723309349979,0.07653481,2610.7,2610.2,1.91551]
[1723309350178,2.2848,2610.8,2610.2,1.91551]
[1723309351465,4.19992,2610.8,2610.2,1.91551]
[1723309354769,2.2848,2610.8,2610.2,1.91551]
[1723309354927,2.2848,2610.8,2610.3,0.42790258]
[1723309355278,2.2848,2610.8,2610.3,2.34337258]
[1723309357888,2.2848,2610.8,2610.6,1.155]
[1723309360545,2.53203481,2611.1,2610.6,1.155]
[1723309360792,1.32567187,2611.0,2610.8,1.155]
[1723309360989,2.53203481,2611.1,2610.8,1.155]
[1723309361190,1.32565338,2611.0,2610.8,1.155]
[1723309361483,2.53203481,2611.1,2610.8,1.155]
[1723309361785,1.32565405,2611.0,2610.8,1.155]
[1723309361987,2.53203481,2611.1,2610.8,1.155]
[1723309362191,3.24060691,2611.0,2610.8,1.155]
[1723309362481,1.91497,2611.0,2610.8,1.155]
[1723309368556,1.40220865,2610.9,2610.8,1.155]
[1723309369005,1.4022125,2610.9,2610.6,1.155]
[1723309369299,0.07653481,2610.9,2610.6,1.155]
[1723309369502,1.99150481,2611.0,2610.6,1.155]
[1723309369888,1.32567902,2610.9,2610.6,1.155]
[1723309370074,1.99150481,2611.0,2610.6,1.155]
[1723309370284,1.32565545,2610.9,2610.6,1.155]
[1723309370580,1.99150481,2611.0,2610.6,1.155]
[1723309370799,1.32567863,2610.9,2610.6,1.155]
[1723309370997,1.99150481,2611.0,2610.6,1.155]
[1723309371535,1.32567639,2610.9,2610.6,1.155]
[1723309371820,1.99150481,2611.0,2610.6,1.155]
[1723309372027,1.32569099,2610.9,2610.6,1.155]
[1723309372205,1.99150481,2611.0,2610.6,1.155]
[1723309372521,1.32569106,2610.9,2610.6,1.155]
[1723309372870,1.99150481,2611.0,2610.6,1.155]
[1723309373071,1.32569879,2610.9,2610.6,1.155]
[1723309373297,1.99150481,2611.0,2610.6,1.155]
[1723309373496,1.32570062,2610.9,2610.6,1.155]
[1723309373715,0.07653481,2611.0,2610.6,1.155]
[1723309373918,1.32570216,2610.9,2610.8,1.155]
[1723309374077,0.07653481,2611.0,2610.8,1.155]
[1723309374915,1.32569991,2610.9,2610.8,1.155]
[1723309375092,0.07653481,2611.0,2610.8,1.155]
[1723309375289,1.32569027,2610.9,2610.8,1.155]
[1723309375728,0.07653481,2611.0,2610.8,1.155]
[1723309375918,1.32569156,2610.9,2610.8,1.155]
[1723309376112,0.07653481,2611.0,2610.8,1.155]
[1723309376418,1.32570713,2610.9,2610.8,1.155]
[1723309377194,1.32570713,2610.9,2610.6,1.155]
[1723309377397,1.99151481,2611.0,2610.6,1.155]
[1723309377709,1.32569942,2610.9,2610.6,1.155]
[1723309377876,1.99151481,2611.0,2610.6,1.155]
[1723309378076,1.32570339,2610.9,2610.6,1.155]
[1723309378300,1.32570339,2610.8,2610.6,1.155]
[1723309378533,1.99151481,2611.0,2610.0,9.6154]
[1723309378534,1.91531,2610.6,2610.0,9.6154]
[1723309378681,1.4022382,2610.5,2610.2,1.155]
[1723309378876,1.4022382,2610.5,2609.7,9.26588]
[1723309378877,3.68460339,2610.4,2610.0,1.155]
[1723309379107,1.4022382,2610.3,2610.0,1.155]
[1723309379288,0.07653481,2610.3,2610.0,1.155]
[1723309379911,1.91556,2610.2,2610.0,1.155]
[1723309380115,0.07653481,2610.1,2610.0,1.155]
[1723309380617,2.3589,2610.0,2609.8,1.155]
[1723309380792,0.07653481,2609.9,2609.8,1.155]
[1723309380999,1.91605,2609.6,2608.9,1.91646]
[1723309381190,1.91605,2609.6,2608.8,7.35]
[1723309381191,1.91619,2609.4,2608.8,7.35]
[1723309381393,1.99275481,2609.3,2608.8,7.35]
[1723309381590,0.07653481,2609.2,2608.9,1.155]
[1723309382119,1.99282481,2609.2,2608.9,1.155]
[1723309382687,1.91629,2609.2,2608.9,1.155]
[1723309383124,0.07653481,2609.3,2608.9,1.155]
[1723309383806,1.91634,2609.2,2608.5,1.91675]
[1723309384006,2.43543481,2609.1,2608.4,4.69283]
[1723309384212,2.43543481,2609.1,2608.4,4.69288]
[1723309384736,2.43543481,2609.1,2608.4,2.776]
[1723309384737,4.35184481,2609.1,2608.4,2.776]
[1723309385630,1.91644,2609.0,2608.4,2.776]
[1723309385789,0.07653481,2608.9,2608.4,3.24529]
[1723309388032,0.07653481,2608.9,2608.1,6.95844]
[1723309388325,0.07653481,2608.9,2608.1,4.69304]
[1723309388554,1.9166,2608.8,2608.1,1.91704]
[1723309388768,0.07653481,2608.7,2608.1,1.91704]
[1723309388968,0.07653481,2608.9,2608.2,0.191704]
[1723309389256,1.99305481,2608.9,2608.3,1.91695]
[1723309390328,0.07653481,2608.9,2608.3,1.91695]
[1723309392619,1.99306481,2608.9,2608.3,1.91695]
[1723309392859,0.07653481,2608.9,2608.3,1.91695]
[1723309393029,0.07653481,2608.9,2608.3,2.3195194]
[1723309393831,0.07445527,2608.9,2608.3,2.3195194]
[1723309395614,1.99096527,2608.9,2608.3,2.3195194]
[1723309398071,0.07445527,2608.9,2608.3,2.3195194]
[1723309399877,1.99101527,2608.9,2608.3,2.3195194]
[1723309400072,0.07445527,2608.9,2608.4,0.25112234]
[1723309401581,2.2723,2609.2,2608.7,1.91664]
[1723309401783,2.34675527,2609.2,2608.7,1.91664]
[1723309402077,2.34675527,2609.2,2608.7,2.299978]
[1723309402295,2.34675527,2609.2,2608.7,0.383338]
[1723309402296,1.91643,2609.1,2608.7,0.383338]
[1723309402463,0.07445527,2609.0,2608.4,0.25112234]
[1723309403556,0.07445527,2609.0,2608.5,1.9168]
[1723309405899,0.07445527,2609.0,2608.8,1.157]
[1723309406081,0.07445527,2609.1,2608.8,1.157]
[1723309407686,0.07445527,2609.1,2609.0,1.157]
[1723309407883,0.07445527,2609.3,2609.0,3.07338]
[1723309408164,9.5936,2609.5,2609.2,1.157]
[1723309409403,2.2936,2609.5,2609.2,1.157]
[1723309409571,0.07445527,2609.4,2609.2,1.157]
[1723309413672,2.2936,2609.5,2609.2,1.157]
[1723309413872,2.2936,2609.5,2609.2,1.464343]
[1723309418425,2.2936,2609.5,2609.2,1.157]
[1723309421922,2.39725527,2609.7,2609.2,1.157]
[1723309422135,4.31318527,2609.7,2609.2,1.157]
[1723309424406,0.07445527,2609.7,2609.6,1.157]
[1723309424607,1.91563,2610.1,2609.6,1.157]
[1723309424608,2.3228,2610.1,2609.6,1.157]
[1723309424811,0.07445527,2610.0,2609.8,1.157]
[1723309425036,2.3228,2610.1,2609.8,1.157]
[1723309425241,1.9156,2610.2,2610.0,1.157]
[1723309425534,1.9156,2610.2,2609.8,1.157]
[1723309425535,0.07445527,2610.1,2609.8,1.157]
[1723309425699,1.99014527,2610.1,2609.8,1.157]
[1723309426710,0.07445527,2610.1,2609.8,1.157]
[1723309430111,2.35874889,2610.2,2609.8,1.157]
[1723309430422,3.0,2610.3,2610.0,1.157]
[1723309430618,0.60044893,2610.4,2610.0,1.157]
[1723309430818,0.60044893,2610.4,2610.3,1.157]
[1723309431154,0.00836911,2611.0,2610.3,3.07248]
[1723309431155,6.27751911,2611.0,2610.3,3.07248]
[1723309431444,0.07445527,2610.9,2610.6,1.157]
[1723309431610,4.36248911,2611.0,2610.6,1.157]
[1723309431814,1.92338911,2611.0,2610.6,1.157]
[1723309432235,1.92338911,2611.0,2610.8,1.157]
[1723309432446,3.34115401,2611.0,2610.8,1.157]
[1723309433321,3.34115401,2611.0,2610.6,1.157]
[1723309433940,3.34115401,2611.0,2610.3,2.6546]
[1723309435320,1.92338911,2611.0,2610.3,2.6546]
[1723309437334,1.92338911,2611.0,2610.3,2.65464]
[1723309437541,1.91514,2610.8,2610.3,0.73917]
[1723309437833,0.07445527,2610.9,2610.2,4.39575259]
[1723309438151,2.4391,2610.8,2610.2,4.39575259]
[1723309438322,2.4391,2610.8,2610.2,6.03908485]
[1723309439763,2.4391,2610.8,2610.3,1.91547]
[1723309440769,0.00836911,2611.0,2610.3,1.91547]
[1723309440949,0.00836911,2611.0,2610.5,1.91533]
[1723309441281,0.00836911,2611.0,2610.5,2.29841]
[1723309443228,0.00836911,2611.0,2610.5,2.29837]
[1723309444025,0.00836911,2611.0,2610.5,4.21366]
[1723309444468,0.00836911,2611.0,2610.5,0.38308]
[1723309444673,1.99784438,2611.0,2610.3,1.91544]
[1723309445372,0.08282438,2611.0,2610.4,1.91537]
[1723309447272,0.08282438,2611.0,2610.5,1.91531]
[1723309447476,0.00836911,2611.0,2610.5,1.91531]
[1723309447773,0.00836911,2611.0,2610.6,0.191531]
[1723309449136,0.08282438,2611.0,2610.3,1.99205041]
[1723309449362,1.91504,2610.9,2610.3,1.91544]
[1723309449633,0.07445527,2610.8,2610.4,0.59623723]
[1723309450336,0.07445527,2610.8,2610.4,2.51163723]
[1723309450572,0.07445527,2610.9,2610.4,2.51163723]
[1723309453294,0.00836911,2611.0,2610.5,1.91534]
[1723309453457,0.00836911,2611.0,2610.6,0.25115772]
[1723309453982,0.00836911,2611.0,2610.6,2.16640772]
[1723309454284,0.00836911,2611.0,2610.6,4.57780772]
[1723309455869,0.00836911,2611.0,2610.9,1.155]
[1723309469832,1.33393312,2611.0,2610.9,1.155]
[1723309469991,0.00836911,2611.0,2610.9,1.155]
[1723309470905,1.33394914,2611.0,2610.9,1.155]
[1723309471154,1.33395442,2611.0,2610.9,1.155]
[1723309471529,0.00836911,2611.0,2610.9,1.155]
[1723309472391,1.33394546,2611.0,2610.9,1.155]
[1723309472587,0.00836911,2611.0,2610.9,1.155]
[1723309472840,2.4774,2610.9,2610.4,9.26535]
[1723309473133,0.07445527,2610.8,2610.7,1.155]
[1723309473491,1.32569325,2610.8,2610.7,1.155]
[1723309474707,4.46690527,2610.9,2610.7,1.155]
[1723309474905,4.39245,2610.9,2610.7,1.155]
[1723309475115,1.32572462,2610.8,2610.7,1.155]
[1723309478448,4.39245,2610.9,2610.7,1.155]
[1723309478757,1.32572716,2610.8,2610.7,1.155]
[1723309479042,1.32572419,2610.8,2610.7,1.155]
[1723309484262,4.39245,2610.9,2610.7,1.155]
[1723309486029,2.4774,2610.9,2610.7,1.155]
[1723309486332,0.00836911,2611.0,2610.7,1.155]
[1723309486527,0.00836911,2611.0,2610.9,1.155]
[1723309486727,1.33399637,2611.0,2610.9,1.155]
[1723309487272,1.33399663,2611.0,2610.9,1.155]
[1723309487564,3.24896663,2611.0,2610.9,1.155]
[1723309488263,1.33399663,2611.0,2610.9,1.155]
[1723309489368,1.33400183,2611.0,2610.9,1.155]
[1723309489904,0.00836911,2611.0,2610.9,1.155]
[1723309490056,1.3340007,2611.0,2610.9,1.155]
[1723309491228,1.3339962,2611.0,2610.9,1.155]
[1723309493039,1.33399583,2611.0,2610.9,1.155]
[1723309495661,1.91516,2610.8,2610.3,2.2872]
[1723309495832,1.91516,2610.8,2610.0,9.26568]
[1723309495833,3.31543365,2610.7,2610.4,1.155]
[1723309496032,1.91534,2610.5,2610.4,1.155]
[1723309496255,1.91534,2610.5,2610.1,1.155]
[1723309496256,1.91546,2610.4,2610.1,1.155]
[1723309496479,2.2852,2610.2,2610.1,1.155]
[1723309496772,2.2852,2610.2,2609.2,1.91625]
[1723309496773,1.91583,2609.9,2609.2,1.91625]
[1723309496973,0.07445527,2609.8,2609.2,1.91625]
[1723309497188,0.07445527,2609.8,2609.5,1.155]
[1723309497967,0.07445527,2610.0,2609.7,1.155]
[1723309498137,0.07445527,2610.1,2609.9,1.155]
[1723309499037,0.07445527,2610.2,2609.9,1.155]
[1723309499234,1.98995527,2610.3,2610.1,1.155]
[1723309500447,0.07445527,2610.2,2610.1,1.155]
[1723309500846,0.07445527,2610.2,2609.9,1.155]
[1723309500847,1.99001527,2610.2,2609.9,1.155]
[1723309501738,1.99001527,2610.2,2609.5,1.91604]
[1723309501934,1.99001527,2610.2,2609.9,1.155]
[1723309502131,1.91564,2610.1,2609.9,1.155]
[1723309502337,0.07445527,2610.0,2609.9,1.155]
[1723309504874,0.07445527,2610.0,2609.8,1.155]
[1723309506944,1.91578,2609.9,2609.6,1.155]
[1723309507145,0.07445527,2609.8,2609.6,1.155]
[1723309508350,0.07445527,2609.8,2609.0,7.35]
[1723309508351,1.916,2609.6,2608.9,4.27738]
[1723309508556,0.07445527,2609.5,2609.3,1.155]
[1723309509642,1.99057527,2609.5,2609.3,1.155]
[1723309509851,0.07445527,2609.5,2609.3,1.155]
[1723309510053,1.99052527,2609.5,2609.3,1.155]
[1723309510270,1.99052527,2609.5,2608.7,4.27753]
[1723309510271,1.91614,2609.4,2608.7,4.27753]
[1723309510465,0.07445527,2609.3,2609.2,1.155]
[1723309510679,1.99059527,2609.4,2609.2,1.155]
[1723309511082,3.90680527,2609.4,2609.2,1.155]
[1723309511448,1.99059527,2609.4,2609.2,1.155]
[1723309511883,3.90679527,2609.4,2609.2,1.155]
[1723309512289,1.99059527,2609.4,2609.2,1.155]
[1723309512453,0.07445527,2609.3,2609.2,1.155]
[1723309515860,1.99067527,2609.3,2609.2,1.155]
[1723309516103,4.36697527,2609.3,2609.2,1.155]
[1723309516686,2.45075527,2609.3,2609.2,1.155]
[1723309516864,0.07445527,2609.3,2609.2,1.155]
[1723309517269,2.3763,2609.5,2609.2,1.155]
[1723309517270,0.07445527,2609.4,2609.2,1.155]
[1723309518700,1.99060527,2609.4,2609.2,1.155]
[1723309520210,1.99060527,2609.4,2608.8,0.427753]
[1723309520408,1.99060527,2609.4,2609.1,1.155]
[1723309523210,1.9163,2609.2,2608.8,0.427753]
[1723309523424,1.9163,2609.2,2608.7,2.3609]
[1723309523425,0.07445527,2609.1,2608.7,2.3609]
[1723309523577,0.07445527,2609.1,2608.9,1.155]
[1723309527426,0.07445527,2609.1,2608.7,2.3609]
[1723309527620,0.07445527,2609.1,2609.0,1.155]
[1723309528319,0.07445527,2609.1,2608.7,2.3609]
[1723309528518,0.07445527,2609.1,2609.0,1.155]
[1723309529320,1.99081527,2609.1,2609.0,1.155]
[1723309529525,0.07445527,2609.1,2609.0,1.155]
[1723309530383,0.07445527,2609.1,2608.5,1.91675]
[1723309530736,0.07445527,2609.1,2605.5,3.98498297]
[1723309530737,1.91894,2605.6,2605.5,3.98498297]
[1723309531029,1.91894,2605.6,2604.2,5.97747446]
[1723309531030,3.83818,2605.4,2605.3,0.40034716]
[1723309531262,3.83818,2605.4,2603.5,2.4917]
[1723309531263,0.07445527,2605.3,2603.5,2.4917]
[1723309531412,0.55,2605.5,2604.2,1.91997]
[1723309531413,6.89212439,2605.4,2604.2,1.91997]
[1723309531583,4.63488106,2605.2,2604.3,2.16932603]
[1723309531783,4.63488106,2605.2,2604.3,0.191997]
[1723309531784,0.07445527,2605.2,2604.3,0.191997]
[1723309532426,0.07445527,2605.2,2604.1,1.91997]
[1723309532636,1.9194,2605.0,2604.6,1.155]
[1723309532944,1.99391527,2604.9,2604.6,1.155]
[1723309533141,0.07445527,2604.9,2604.6,1.155]
[1723309533842,0.07445527,2604.9,2604.1,4.70503]
[1723309534024,0.07445527,2604.9,2604.2,0.48300494]
[1723309534430,3.0,2605.4,2604.4,2.785]
[1723309534736,0.07445527,2605.3,2604.5,1.91973]
[1723309534937,1.99367527,2605.3,2604.4,4.70482]
[1723309535146,0.07445527,2605.2,2604.5,0.470482]
[1723309535350,0.07445527,2605.2,2604.5,2.390212]
[1723309537720,0.07445527,2605.2,2604.7,2.785]
[1723309537942,0.07445527,2605.3,2604.7,2.785]
[1723309538158,1.91925,2605.2,2604.7,2.785]
[1723309538455,0.07445527,2605.1,2604.7,2.785]
[1723309538825,1.99362527,2605.3,2604.7,3.3025232]
[1723309538971,0.07445527,2605.2,2604.7,3.3025232]
[1723309539172,1.91932,2605.1,2604.5,0.470482]
[1723309539335,0.07445527,2605.0,2604.5,0.470482]
[1723309540440,0.07445527,2605.1,2604.5,0.470482]
[1723309540979,0.07445527,2605.1,2604.5,2.390232]
[1723309541137,0.07445527,2605.1,2604.6,0.7666932]
[1723309541560,1.99369527,2605.2,2604.6,0.7666932]
[1723309541763,1.99369527,2605.2,2604.5,2.390232]
[1723309545159,1.99369527,2605.2,2604.5,0.470482]
[1723309545468,1.91931,2605.1,2604.5,0.470482]
[1723309546686,0.07445527,2605.2,2604.5,2.390232]
[1723309547302,1.99369527,2605.2,2604.5,0.470482]
[1723309547861,1.91982,2604.4,2603.7,1.92029]
[1723309548174,0.07445527,2604.3,2603.8,4.70526]
[1723309548382,0.07445527,2604.3,2603.8,2.785]
[1723309548701,0.07445527,2604.3,2603.8,4.70526]